fUSD/lending_fUSD_20250219
["ID","MTS","AMOUNT","RATE_DAILY","PERIOD"]
[353605179,1739957008196,-152.297437,0.00014109,2]
[353605180,1739957008225,-500.0,0.00014109,2]
[353605181,1739957008254,-500.0,0.00014109,2]
[353605182,1739957008284,-500.0,0.00014109,2]
[353605183,1739957008313,-1252.15,0.00014109,2]
[353605184,1739957008344,-310.89,0.00014109,2]
[353605185,1739957008373,-500.0,0.00014109,2]
[353605186,1739957008402,-500.0,0.00014109,2]
[353605187,1739957008430,-724.82,0.00014109,2]
[353605188,1739957008462,-603.12918196,0.00014109,2]
[353605189,1739957008489,-604.92,0.00014109,2]
[353605190,1739957008518,-855.46,0.00014109,2]
[353605191,1739957008545,-500.0,0.00014109,2]
[353605192,1739957008572,-500.0,0.00014109,2]
[353605193,1739957008600,-736.01,0.00014109,2]
[353605194,1739957008628,-1283.84,0.00014109,2]
[353605195,1739957008657,-500.0,0.00014109,2]
[353605196,1739957008687,-500.0,0.00014109,2]
[353605197,1739957008716,-500.0,0.00014109,2]
[353605198,1739957008746,-418.45,0.00014109,2]
[353605199,1739957008774,-745.89,0.00014109,2]
[353605200,1739957008804,-1926.5,0.00014109,2]
[353605201,1739957008833,-500.0,0.00014109,2]
[353605202,1739957008866,-500.0,0.00014109,2]
[353605203,1739957008895,-1055.67,0.00014109,2]
[353605204,1739957008924,-627.81,0.00014109,2]
[353605205,1739957008954,-500.0,0.00014109,2]
[353605206,1739957008984,-500.0,0.00014109,2]
[353605207,1739957009015,-500.0,0.00014109,2]
[353605208,1739957009044,-776.57,0.00014109,2]
[353605209,1739957009075,-490.09,0.00014109,2]
[353605210,1739957009103,-500.0,0.00014109,2]
[353605211,1739957009131,-547.75,0.00014109,2]
[353605212,1739957009160,-733.08,0.00014109,2]
[353605213,1739957009187,-500.0,0.00014109,2]
[353605214,1739957009216,-529.59,0.00014109,2]
[353605215,1739957009246,-4362.54,0.00014109,2]
[353605216,1739957009274,-500.0,0.00014109,2]
[353605217,1739957009302,-500.0,0.00014109,2]
[353605218,1739957009329,-500.0,0.00014109,2]
[353605219,1739957009356,-500.0,0.00014109,2]
[353605220,1739957009385,-500.0,0.00014109,2]
[353605221,1739957009414,-691.67,0.00014109,2]
[353605222,1739957009443,-580.48,0.00014109,2]
[353605223,1739957009474,-1333.98,0.00014109,2]
[353605224,1739957009505,-2090.9,0.00014109,2]
[353605225,1739957009536,-823.1,0.00014109,2]
[353605226,1739957009566,-552.5,0.00014109,2]
[353605227,1739957009594,-733.25,0.00014109,2]
[353605228,1739957009817,-1331.05,0.00014109,2]
[353605229,1739957009851,-517.33250392,0.00014109,2]
[353605230,1739957009882,-500.0,0.00014109,2]
[353605231,1739957009916,-1921.55,0.00014135,2]
[353605232,1739957009947,-500.0,0.00014173,2]
[353605233,1739957009977,-524.29206794,0.00014173,2]
[353605234,1739957010007,-454.34473033,0.00014173,2]
[353605235,1739957010037,-277.62775303,0.00014173,2]
[353605236,1739957010066,-1625.36767,0.00014181,2]
[353605237,1739957010095,-1128.2576999,0.00014181,2]
[353605238,1739957010124,-303.6119941,0.00014181,2]
[353605239,1739957010153,-194.5583732,0.00014181,2]
[353605240,1739957010181,-1060.0,0.00014189,2]
[353605241,1739957010210,-500.0,0.00014191,2]
[353605242,1739957010238,-500.0,0.00014191,2]
[353605243,1739957010267,-543.01,0.00014191,2]
[353605244,1739957010296,-634.82,0.00014191,2]
[353605245,1739957010325,-500.0,0.00014191,2]
[353605246,1739957010353,-500.0,0.00014191,2]
[353605247,1739957010381,-541.04,0.00014191,2]
[353605248,1739957010409,-500.0,0.00014191,2]
[353605249,1739957010438,-725.34,0.00014191,2]
[353605250,1739957010466,-778.48,0.00014191,2]
[353605251,1739957010494,-500.0,0.00014191,2]
[353605252,1739957010521,-500.0,0.00014191,2]
[353605253,1739957010549,-633.81,0.00014191,2]
[353605254,1739957010576,-500.0,0.00014191,2]
[353605255,1739957010603,-562.62,0.00014191,2]
[353605256,1739957010631,-844.44,0.00014191,2]
[353605257,1739957010658,-500.0,0.00014191,2]
[353605258,1739957010686,-500.0,0.00014191,2]
[353605259,1739957010715,-500.0,0.00014191,2]
[353605260,1739957010745,-500.0,0.00014191,2]
[353605261,1739957010774,-500.0,0.00014191,2]
[353605262,1739957010805,-722.42,0.00014191,2]
[353605263,1739957010836,-510.18,0.00014191,2]
[353605264,1739957010869,-500.0,0.00014191,2]
[353605265,1739957010899,-650.55,0.00014191,2]
[353605266,1739957010929,-500.0,0.00014191,2]
[353605267,1739957010960,-500.0,0.00014191,2]
[353605268,1739957010989,-500.0,0.00014191,2]
[353605269,1739957011018,-1055.45,0.00014191,2]
[353605270,1739957011045,-500.0,0.00014191,2]
[353605271,1739957011073,-500.0,0.00014191,2]
[353605272,1739957011102,-500.0,0.00014191,2]
[353605273,1739957011131,-691.51,0.00014191,2]
[353605274,1739957011158,-909.51,0.00014191,2]
[353605275,1739957011185,-500.0,0.00014191,2]
[353605276,1739957011214,-500.0,0.00014191,2]
[353605277,1739957011241,-667.83,0.00014191,2]
[353605278,1739957011268,-500.0,0.00014191,2]
[353605279,1739957011296,-531.54,0.00014191,2]
[353605280,1739957011325,-647.18,0.00014191,2]
[353605281,1739957011352,-500.0,0.00014191,2]
[353605282,1739957011380,-500.0,0.00014191,2]
[353605283,1739957011407,-500.0,0.00014191,2]
[353605284,1739957011435,-930.4,0.00014191,2]
[353605285,1739957011462,-500.0,0.00014191,2]
[353605286,1739957011488,-625.34,0.00014191,2]
[353605287,1739957011514,-565.33636858,0.00014191,2]
[353605288,1739957011542,-500.0,0.00014191,2]
[353605289,1739957011570,-515.28,0.00014191,2]
[353605290,1739957011597,-500.0,0.00014191,2]
[353605291,1739957011624,-551.52,0.00014191,2]
[353605292,1739957011652,-500.0,0.00014191,2]
[353605293,1739957011680,-500.0,0.00014191,2]
[353605294,1739957011708,-500.0,0.00014191,2]
[353605295,1739957011735,-770.16,0.00014191,2]
[353605296,1739957011762,-500.0,0.00014191,2]
[353605297,1739957011790,-500.0,0.00014191,2]
[353605298,1739957011819,-500.0,0.00014191,2]
[353605299,1739957011847,-500.0,0.00014191,2]
[353605300,1739957011879,-500.0,0.00014191,2]
[353605301,1739957011910,-500.0,0.00014191,2]
[353605302,1739957011941,-500.0,0.00014191,2]
[353605303,1739957011974,-500.0,0.00014191,2]
[353605304,1739957012004,-512.49,0.00014191,2]
[353605305,1739957012034,-533.08,0.00014191,2]
[353605306,1739957012064,-628.45,0.00014191,2]
[353605307,1739957012092,-743.05,0.00014191,2]
[353605308,1739957012120,-500.0,0.00014191,2]
[353605309,1739957012150,-1540.98,0.00014191,2]
[353605310,1739957012179,-545.22,0.00014191,2]
[353605311,1739957012209,-807.24,0.00014191,2]
[353605312,1739957012238,-514.11,0.00014191,2]
[353605313,1739957012268,-500.0,0.00014191,2]
[353605314,1739957012296,-819.39,0.00014191,2]
[353605315,1739957012324,-500.0,0.00014191,2]
[353605316,1739957012352,-572.21,0.00014191,2]
[353605317,1739957012379,-500.0,0.00014191,2]
[353605318,1739957012407,-649.94,0.00014191,2]
[353605319,1739957012434,-500.0,0.00014191,2]
[353605320,1739957012463,-500.0,0.00014191,2]
[353605321,1739957012491,-500.0,0.00014191,2]
[353605322,1739957012518,-500.0,0.00014191,2]
[353605323,1739957012546,-1211.58,0.00014191,2]
[353605324,1739957012574,-500.0,0.00014191,2]
[353605325,1739957012602,-1135.36,0.00014191,2]
[353605326,1739957012629,-500.0,0.00014191,2]
[353605327,1739957012657,-500.0,0.00014191,2]
[353605328,1739957012685,-722.48,0.00014191,2]
[353605329,1739957012713,-500.0,0.00014191,2]
[353605330,1739957012742,-1272.14,0.00014191,2]
[353605331,1739957012770,-500.0,0.00014191,2]
[353605332,1739957012799,-500.0,0.00014191,2]
[353605333,1739957012829,-500.0,0.00014191,2]
[353605334,1739957012861,-712.89,0.00014191,2]
[353605335,1739957012891,-500.0,0.00014191,2]
[353605336,1739957012920,-500.0,0.00014191,2]
[353605337,1739957012948,-500.0,0.00014191,2]
[353605338,1739957012976,-500.0,0.00014191,2]
[353605339,1739957013005,-500.0,0.00014191,2]
[353605340,1739957013037,-862.66,0.00014191,2]
[353605341,1739957013069,-1233.72,0.00014191,2]
[353605342,1739957013099,-740.17,0.00014191,2]
[353605343,1739957013130,-758.66,0.00014191,2]
[353605344,1739957013158,-500.0,0.00014191,2]
[353605345,1739957013188,-601.16,0.00014191,2]
[353605346,1739957013219,-515.0718437,0.00014191,2]
[353605347,1739957013248,-500.0,0.00014191,2]
[353605348,1739957013278,-689.44,0.00014191,2]
[353605349,1739957013308,-593.48,0.00014191,2]
[353605350,1739957013338,-500.0,0.00014191,2]
[353605351,1739957013368,-500.0,0.00014191,2]
[353605352,1739957013398,-774.93,0.00014191,2]
[353605353,1739957013427,-500.0,0.00014191,2]
[353605354,1739957013457,-1397.033156,0.00014191,2]
[353605355,1739957013487,-500.0,0.00014191,2]
[353605356,1739957013519,-1325.26,0.00014191,2]
[353605357,1739957013550,-500.0,0.00014191,2]
[353605358,1739957013582,-750.16,0.00014191,2]
[353605359,1739957013614,-500.0,0.00014191,2]
[353605360,1739957013644,-500.0,0.00014191,2]
[353605361,1739957013679,-162.079268,0.00014191,2]
[353605362,1739957013711,-1394.43,0.00014191,2]
[353605363,1739957013743,-500.0,0.00014191,2]
[353605364,1739957013773,-500.0,0.00014191,2]
[353605365,1739957013806,-500.0,0.00014191,2]
[353605366,1739957013841,-638.51,0.00014191,2]
[353605367,1739957013876,-500.0,0.00014191,2]
[353605368,1739957013910,-500.0,0.00014191,2]
[353605369,1739957013945,-500.0,0.00014191,2]
[353605370,1739957014194,-500.0,0.00014191,2]
[353605371,1739957014231,-916.97,0.00014191,2]
[353605372,1739957014265,-500.0,0.00014191,2]
[353605373,1739957014297,-500.0,0.00014191,2]
[353605374,1739957014330,-571.77,0.00014191,2]
[353605375,1739957014364,-500.0,0.00014191,2]
[353605376,1739957014397,-535.59,0.00014191,2]
[353605377,1739957014430,-543.64,0.00014191,2]
[353605378,1739957014462,-500.0,0.00014191,2]
[353605379,1739957014498,-646.22,0.00014191,2]
[353605380,1739957014528,-1263.66,0.00014191,2]
[353605381,1739957014558,-865.23,0.00014191,2]
[353605382,1739957014589,-1825.346312,0.00014191,2]
[353605383,1739957014618,-592.33,0.00014191,2]
[353605384,1739957014647,-453.15637532,0.00014191,2]
[353605385,1739957014677,-646.68,0.00014191,2]
[353605386,1739957014707,-597.97,0.00014191,2]
[353605387,1739957014737,-694.2,0.00014191,2]
[353605388,1739957014767,-500.0,0.00014191,2]
[353605389,1739957014798,-500.0,0.00014191,2]
[353605390,1739957014830,-500.0,0.00014191,2]
[353605391,1739957014865,-1174.15,0.00014191,2]
[353605392,1739957014896,-500.0,0.00014191,2]
[353605393,1739957014927,-878.0,0.00014191,2]
[353605394,1739957014958,-500.0,0.00014191,2]
[353605395,1739957014988,-825.52,0.00014191,2]
[353605396,1739957015020,-500.0,0.00014191,2]
[353605397,1739957015051,-500.0,0.00014191,2]
[353605398,1739957015082,-500.0,0.00014191,2]
[353605399,1739957015112,-500.0,0.00014191,2]
[353605400,1739957015140,-516.38,0.00014191,2]
[353605401,1739957015170,-500.0,0.00014191,2]
[353605402,1739957015199,-500.0,0.00014191,2]
[353605403,1739957015227,-1264.71,0.00014191,2]
[353605404,1739957015255,-906.18,0.00014191,2]
[353605405,1739957015284,-500.0,0.00014191,2]
[353605406,1739957015312,-500.0,0.00014191,2]
[353605407,1739957015341,-500.0,0.00014191,2]
[353605408,1739957015371,-565.96,0.00014191,2]
[353605409,1739957015400,-500.0,0.00014191,2]
[353605410,1739957015430,-988.21,0.00014191,2]
[353605411,1739957015460,-500.0,0.00014191,2]
[353605412,1739957015489,-1121.54,0.00014191,2]
[353605413,1739957015518,-500.52,0.00014191,2]
[353605414,1739957015548,-500.0,0.00014191,2]
[353605415,1739957015579,-500.0,0.00014191,2]
[353605416,1739957015609,-500.0,0.00014191,2]
[353605417,1739957015640,-1126.66,0.00014191,2]
[353605418,1739957015669,-628.69,0.00014191,2]
[353605419,1739957015697,-500.0,0.00014191,2]
[353605420,1739957015725,-500.0,0.00014191,2]
[353605421,1739957015754,-602.69865296,0.00014191,2]
[353605422,1739957015783,-500.0,0.00014191,2]
[353605423,1739957015813,-500.0,0.00014191,2]
[353605424,1739957015846,-883.27,0.00014191,2]
[353605425,1739957015879,-777.31,0.00014191,2]
[353605426,1739957015911,-500.0,0.00014191,2]
[353605427,1739957015945,-500.0,0.00014191,2]
[353605428,1739957015978,-601.15,0.00014191,2]
[353605429,1739957016008,-500.0,0.00014191,2]
[353605430,1739957016039,-500.0,0.00014191,2]
[353605431,1739957016069,-653.11,0.00014191,2]
[353605432,1739957016099,-532.82856816,0.00014191,2]
[353605433,1739957016129,-500.0,0.00014191,2]
[353605434,1739957016160,-777.33,0.00014191,2]
[353605435,1739957016189,-500.0,0.00014191,2]
[353605436,1739957016219,-523.08,0.00014191,2]
[353605437,1739957016250,-1044.61,0.00014191,2]
[353605438,1739957016282,-500.0,0.00014191,2]
[353605439,1739957016315,-712.57,0.00014191,2]
[353605440,1739957016348,-500.0,0.00014191,2]
[353605441,1739957016380,-500.0,0.00014191,2]
[353605442,1739957016411,-540.46,0.00014191,2]
[353605443,1739957016440,-777.07,0.00014191,2]
[353605444,1739957016472,-687.05,0.00014191,2]
[353605445,1739957016501,-500.0,0.00014191,2]
[353605446,1739957016531,-500.0,0.00014191,2]
[353605447,1739957016561,-879.81,0.00014191,2]
[353605448,1739957016589,-500.0,0.00014191,2]
[353605449,1739957016619,-525.83,0.00014191,2]
[353605450,1739957016651,-625.39,0.00014191,2]
[353605451,1739957016682,-888.05,0.00014191,2]
[353605452,1739957016712,-787.18,0.00014191,2]
[353605453,1739957016742,-194.81571787,0.00014191,2]
[353605454,1739957016771,-500.0,0.00014191,2]
[353605455,1739957016801,-781.66,0.00014191,2]
[353605456,1739957016831,-532.61,0.00014191,2]
[353605457,1739957016865,-596.76,0.00014191,2]
[353605458,1739957016895,-536.22,0.00014191,2]
[353605459,1739957016925,-500.0,0.00014191,2]
[353605460,1739957016955,-500.0,0.00014191,2]
[353605461,1739957016983,-500.0,0.00014191,2]
[353605462,1739957017011,-914.58,0.00014191,2]
[353605463,1739957017040,-500.0,0.00014191,2]
[353605464,1739957017069,-500.0,0.00014191,2]
[353605465,1739957017098,-500.0,0.00014191,2]
[353605466,1739957017128,-500.0,0.00014191,2]
[353605467,1739957017158,-657.0,0.00014191,2]
[353605468,1739957017187,-500.0,0.00014191,2]
[353605469,1739957017216,-727.68,0.00014191,2]
[353605470,1739957017245,-1554.06,0.00014191,2]
[353605471,1739957017275,-594.44,0.00014191,2]
[353605472,1739957017307,-500.0,0.00014191,2]
[353605473,1739957017336,-500.0,0.00014191,2]
[353605474,1739957017365,-500.0,0.00014191,2]
[353605475,1739957017394,-1286.14,0.00014191,2]
[353605476,1739957017424,-539.19,0.00014191,2]
[353605477,1739957017453,-731.14,0.00014191,2]
[353605478,1739957017481,-500.0,0.00014191,2]
[353605479,1739957017510,-523.74,0.00014191,2]
[353605480,1739957017539,-1494.76,0.00014191,2]
[353605481,1739957017568,-500.0,0.00014191,2]
[353605482,1739957017597,-500.0,0.00014191,2]
[353605483,1739957017625,-500.0,0.00014191,2]
[353605484,1739957017655,-656.29,0.00014191,2]
[353605485,1739957017684,-500.0,0.00014191,2]
[353605486,1739957017713,-500.0,0.00014191,2]
[353605487,1739957017742,-1380.28,0.00014191,2]
[353605488,1739957017769,-500.0,0.00014191,2]
[353605489,1739957017798,-500.0,0.00014191,2]
[353605490,1739957017827,-500.0,0.00014191,2]
[353605491,1739957017856,-500.0,0.00014191,2]
[353605492,1739957017887,-500.0,0.00014191,2]
[353605493,1739957017918,-1469.68,0.00014191,2]
[353605494,1739957017950,-500.0,0.00014191,2]
[353605495,1739957017977,-500.0,0.00014191,2]
[353605496,1739957018007,-500.0,0.00014191,2]
[353605497,1739957018037,-268.98927349,0.00014191,2]
[353605498,1739957018065,-1629.48,0.00014191,2]
[353605499,1739957018094,-500.0,0.00014191,2]
[353605500,1739957018122,-506.69,0.00014191,2]
[353605501,1739957018149,-500.0,0.00014191,2]
[353605502,1739957018178,-1643.27,0.00014191,2]
[353605503,1739957018205,-500.0,0.00014191,2]
[353605504,1739957018233,-500.07,0.00014191,2]
[353605505,1739957018260,-1374.04,0.00014191,2]
[353605506,1739957018288,-500.0,0.00014191,2]
[353605507,1739957018524,-500.0,0.00014191,2]
[353605508,1739957018555,-500.0,0.00014191,2]
[353605509,1739957018584,-500.0,0.00014191,2]
[353605510,1739957018612,-500.0,0.00014191,2]
[353605511,1739957018640,-517.27095583,0.00014191,2]
[353605512,1739957018668,-500.0,0.00014191,2]
[353605513,1739957018696,-2880.46,0.00014191,2]
[353605514,1739957018724,-500.0,0.00014191,2]
[353605515,1739957018752,-500.0,0.00014191,2]
[353605516,1739957018781,-500.0,0.00014191,2]
[353605517,1739957018810,-500.0,0.00014191,2]
[353605518,1739957018842,-708.89,0.00014191,2]
[353605519,1739957018873,-1303.36,0.00014191,2]
[353605520,1739957018905,-500.0,0.00014191,2]
[353605521,1739957018938,-500.0,0.00014191,2]
[353605522,1739957018968,-500.0,0.00014191,2]
[353605523,1739957018997,-626.2,0.00014191,2]
[353605524,1739957019027,-500.0,0.00014191,2]
[353605525,1739957019056,-500.0,0.00014191,2]
[353605526,1739957019086,-500.0,0.00014191,2]
[353605527,1739957019115,-691.7,0.00014191,2]
[353605528,1739957019143,-500.0,0.00014191,2]
[353605529,1739957019173,-218.44095465,0.00014191,2]
[353605530,1739957019203,-500.0,0.00014191,2]
[353605531,1739957019234,-598.12,0.00014191,2]
[353605532,1739957019265,-500.0,0.00014191,2]
[353605533,1739957019297,-577.05852925,0.00014191,2]
[353605534,1739957019328,-500.0,0.00014191,2]
[353605535,1739957019360,-1590.92,0.00014191,2]
[353605536,1739957019389,-639.73377444,0.00014191,2]
[353605537,1739957019420,-500.0,0.00014191,2]
[353605538,1739957019451,-629.55,0.00014191,2]
[353605539,1739957019480,-500.0,0.00014191,2]
[353605540,1739957019509,-500.0,0.00014191,2]
[353605541,1739957019539,-956.27,0.00014191,2]
[353605542,1739957019570,-500.0,0.00014191,2]
[353605543,1739957019598,-500.89,0.00014191,2]
[353605544,1739957019627,-500.0,0.00014191,2]
[353605545,1739957019656,-848.21,0.00014191,2]
[353605546,1739957019687,-500.0,0.00014191,2]
[353605547,1739957019718,-500.0,0.00014191,2]
[353605548,1739957019750,-998.89,0.00014191,2]
[353605549,1739957019780,-500.0,0.00014191,2]
[353605550,1739957019810,-220.40291089,0.00014191,2]
[353605551,1739957019844,-782.0,0.00014191,2]
[353605552,1739957019877,-500.0,0.00014191,2]
[353605553,1739957019914,-500.0,0.00014191,2]
[353605554,1739957019949,-840.54,0.00014191,2]
[353605555,1739957019980,-528.517862,0.00014191,2]
[353605556,1739957020011,-500.0,0.00014191,2]
[353605557,1739957020042,-632.82,0.00014191,2]
[353605558,1739957020075,-1192.42,0.00014191,2]
[353605559,1739957020107,-500.0,0.00014191,2]
[353605560,1739957020139,-500.0,0.00014191,2]
[353605561,1739957020170,-657.73,0.00014191,2]
[353605562,1739957020198,-500.0,0.00014191,2]
[353605563,1739957020228,-1447.73,0.00014191,2]
[353605564,1739957020259,-500.0,0.00014191,2]
[353605565,1739957020290,-825.98,0.00014191,2]
[353605566,1739957020320,-500.0,0.00014191,2]
[353605567,1739957020350,-500.0,0.00014191,2]
[353605568,1739957020380,-719.81,0.00014191,2]
[353605569,1739957020409,-500.0,0.00014191,2]
[353605570,1739957020439,-500.0,0.00014191,2]
[353605571,1739957020472,-1285.19,0.00014191,2]
[353605572,1739957020502,-500.0,0.00014191,2]
[353605573,1739957020531,-500.0,0.00014191,2]
[353605574,1739957020560,-500.0,0.00014191,2]
[353605575,1739957020590,-2760.81,0.00014191,2]
[353605576,1739957020619,-500.0,0.00014191,2]
[353605577,1739957020648,-1429.12,0.00014191,2]
[353605578,1739957020677,-535.98,0.00014191,2]
[353605579,1739957020706,-1108.97,0.00014191,2]
[353605580,1739957020735,-560.79,0.00014191,2]
[353605581,1739957020766,-1725.34,0.00014191,2]
[353605582,1739957020796,-500.0,0.00014191,2]
[353605583,1739957020826,-583.25,0.00014191,2]
[353605584,1739957020856,-500.0,0.00014191,2]
[353605585,1739957020887,-783.42,0.00014191,2]
[353605586,1739957020920,-500.0,0.00014191,2]
[353605587,1739957020954,-778.14,0.00014191,2]
[353605588,1739957020985,-500.0,0.00014191,2]
[353605589,1739957021015,-1078.1,0.00014191,2]
[353605590,1739957021045,-500.0,0.00014191,2]
[353605591,1739957021075,-2405.75,0.00014191,2]
[353605592,1739957021105,-5296.1,0.00014191,2]
[353605593,1739957021135,-2043.27,0.00014191,2]
[353605594,1739957021164,-1534.33,0.00014191,2]
[353605595,1739957021193,-500.0,0.00014191,2]
[353605596,1739957021222,-647.07,0.00014191,2]
[353605597,1739957021250,-539.11319312,0.00014191,2]
[353605598,1739957021280,-530.04272312,0.00014191,2]
[353605599,1739957021308,-500.0,0.00014191,2]
[353605600,1739957021337,-1051.18,0.00014191,2]
[353605601,1739957021365,-738.28,0.00014191,2]
[353605602,1739957021394,-500.0,0.00014191,2]
[353605603,1739957021424,-1295.32,0.00014191,2]
[353605604,1739957021452,-1093.24,0.00014191,2]
[353605605,1739957021481,-500.0,0.00014191,2]
[353605606,1739957021511,-2278.72,0.00014191,2]
[353605607,1739957021540,-500.0,0.00014191,2]
[353605608,1739957021567,-1455.08,0.00014191,2]
[353605609,1739957021596,-500.0,0.00014191,2]
[353605610,1739957021625,-500.0,0.00014191,2]
[353605611,1739957021654,-572.16,0.00014191,2]
[353605612,1739957021683,-929.06,0.00014191,2]
[353605613,1739957021713,-967.27,0.00014191,2]
[353605614,1739957021743,-1119.05,0.00014191,2]
[353605615,1739957021772,-500.0,0.00014191,2]
[353605616,1739957021801,-461.83049187,0.00014191,2]
[353605617,1739957021833,-500.0,0.00014191,2]
[353605618,1739957021869,-500.0,0.00014191,2]
[353605619,1739957021901,-770.13,0.00014191,2]
[353605620,1739957021932,-500.0,0.00014191,2]
[353605621,1739957021963,-4255.25,0.00014191,2]
[353605622,1739957021992,-500.0,0.00014191,2]
[353605623,1739957022021,-1120.64,0.00014191,2]
[353605624,1739957022050,-500.0,0.00014191,2]
[353605625,1739957022079,-500.0,0.00014191,2]
[353605626,1739957022107,-1021.92,0.00014191,2]
[353605627,1739957022136,-680.04,0.00014191,2]
[353605628,1739957022165,-500.0,0.00014191,2]
[353605629,1739957022194,-500.0,0.00014191,2]
[353605630,1739957022223,-665.455708,0.00014191,2]
[353605631,1739957022256,-500.0,0.00014191,2]
[353605632,1739957022287,-1015.43,0.00014191,2]
[353605633,1739957022317,-665.455715,0.00014191,2]
[353605634,1739957022348,-500.0,0.00014191,2]
[353605635,1739957022379,-500.0,0.00014191,2]
[353605636,1739957022410,-500.0,0.00014191,2]
[353605637,1739957022440,-252.26828567,0.00014191,2]
[353605638,1739957022656,-500.0,0.00014191,2]
[353605639,1739957022689,-909.24,0.00014191,2]
[353605640,1739957022718,-500.0,0.00014191,2]
[353605641,1739957022747,-500.0,0.00014191,2]
[353605642,1739957022776,-409.08,0.00014191,2]
[353605643,1739957022806,-152.297437,0.00014191,2]
[353605644,1739957022836,-500.0,0.00014191,2]
[353605645,1739957022870,-500.0,0.00014191,2]
[353605646,1739957022902,-500.0,0.00014191,2]
[353605647,1739957022934,-1252.15,0.00014191,2]
[353605648,1739957022965,-500.0,0.00014191,2]
[353605649,1739957022994,-500.0,0.00014191,2]
[353605650,1739957023024,-724.82,0.00014191,2]
[353605651,1739957023053,-604.92,0.00014191,2]
[353605652,1739957023084,-855.46,0.00014191,2]
[353605653,1739957023114,-155.81498,0.00014191,2]
[353605654,1739957023144,-416.48,0.00014191,2]
[353605655,1739957023175,-500.0,0.00014191,2]
[353605656,1739957023205,-736.01,0.00014191,2]
[353605657,1739957023236,-1283.84,0.00014191,2]
[353605658,1739957023266,-500.0,0.00014191,2]
[353605659,1739957023297,-541.27,0.00014191,2]
[353605660,1739957023326,-500.0,0.00014191,2]
[353605661,1739957023355,-745.89,0.00014191,2]
[353605662,1739957023386,-1926.5,0.00014191,2]
[353605663,1739957023418,-500.0,0.00014191,2]
[353605664,1739957023448,-588.59035217,0.00014191,2]
[353605665,1739957023478,-1055.67,0.00014191,2]
[353605666,1739957023507,-627.81,0.00014191,2]
[353605667,1739957023536,-500.0,0.00014191,2]
[353605668,1739957023565,-500.0,0.00014191,2]
[353605669,1739957023594,-639.46,0.00014191,2]
[353605670,1739957023623,-776.57,0.00014191,2]
[353605671,1739957023652,-500.0,0.00014191,2]
[353605672,1739957023682,-733.08,0.00014191,2]
[353605673,1739957023711,-547.75,0.00014191,2]
[353605674,1739957023740,-500.0,0.00014191,2]
[353605675,1739957023771,-529.59,0.00014191,2]
[353605676,1739957023801,-4362.54,0.00014191,2]
[353605677,1739957023830,-172.54,0.00014191,2]
[353605678,1739957023863,-500.0,0.00014191,2]